bitfinex-derivatives/quotes_SOLF0:USTF0_20251210
["timestamp","ask_amount","ask_price","bid_price","bid_amount"]
[1765393787597,6.515,138.15,138.13,0.05382407]
[1765393787790,9.615,138.15,138.13,0.05382407]
[1765393787986,3.1,138.15,138.07,6.5183]
[1765393788295,3.1,138.15,138.01,101.4423]
[1765393788296,111.47471172,138.12,138.01,101.4423]
[1765393788595,7.00771172,138.15,138.06,3.22]
[1765393788988,0.04917232,138.12,138.09,0.04693514]
[1765393789795,0.04917232,138.12,138.09,3.26693514]
[1765393789995,0.04917232,138.12,138.09,0.04693514]
[1765393790198,3.14917232,138.12,138.09,0.04693514]
[1765393790401,0.04917232,138.12,138.09,3.26693514]
[1765393790904,0.04917232,138.12,138.1,6.5167]
[1765393791203,3.1,138.21,138.12,3.22]
[1765393791495,6.5136,138.18,138.1,6.5168]
[1765393791700,3.1,138.19,138.1,101.3762]
[1765393791887,3.1,138.19,138.11,104.5872]
[1765393792087,0.05222646,138.16,138.14,0.05418446]
[1765393792292,0.0532691,138.16,138.14,3.27418446]
[1765393792509,3.1,138.23,138.15,101.3372]
[1765393792698,3.1,138.23,138.14,3.22]
[1765393792998,3.1,138.23,138.14,104.5652]
[1765393793396,9.6113,138.23,138.15,6.5145]
[1765393793599,0.04972329,138.2,138.18,0.05571705]
[1765393794798,7.00771172,138.29,138.19,3.22]
[1765393795001,101.27,138.25,138.14,64.24]
[1765393795305,3.1,138.25,138.17,3.22]
[1765393795801,0.05186158,138.22,138.2,0.05053825]
[1765393796598,0.05186158,138.22,138.2,3.27053825]
[1765393797499,0.05186158,138.22,138.2,0.05053825]
[1765393797698,3.1,138.21,138.12,3.22]
[1765393797901,6.5113,138.23,138.14,9.735]
[1765393798098,108.28151172,138.25,138.14,3.22]
[1765393798099,111.38151172,138.25,138.14,3.22]
[1765393798800,0.051958,138.21,138.18,0.05379896]
[1765393799596,10.10771172,138.2,138.1,3.22]
[1765393799799,104.4176,138.19,138.08,3.22]
[1765393799994,3.1,138.19,138.09,3.22]
[1765393800199,7.00771172,138.2,138.11,3.22]
[1765393800398,3.1,138.21,138.11,165.5653]
[1765393800599,3.1,138.17,138.06,3.22]
[1765393800801,104.4025,138.21,138.1,3.22]
[1765393800995,3.1,138.21,138.11,3.22]
[1765393801303,3.1,138.19,138.1,3.22]
[1765393801604,3.1,138.22,138.13,101.3543]
[1765393801797,3.1,138.26,138.18,3.22]
[1765393802500,111.31021172,138.34,138.23,104.5016]
[1765393802702,101.1905,138.36,138.23,104.5016]
[1765393802703,101.1879,138.36,138.26,3.22]
[1765393802901,0.04798677,138.32,138.3,0.04835452]
[1765393803105,3.14830535,138.32,138.3,0.04835452]
[1765393803504,0.04830535,138.32,138.3,0.04835452]
[1765393803800,3.14830535,138.32,138.3,0.04835452]
[1765393804001,0.04830535,138.32,138.3,0.04835452]
[1765393804400,9.58510535,138.32,138.3,0.04835452]
[1765393804602,9.58510535,138.32,138.22,3.11]
[1765393804603,101.2386,138.29,138.22,3.11]
[1765393804803,101.2612,138.26,138.18,64.09]
[1765393805006,6.509,138.28,138.19,9.6225]
[1765393805307,101.2693,138.25,138.18,60.98]
[1765393805612,101.3119,138.19,138.1,64.07]
[1765393805906,101.3353,138.16,138.1,64.07]
[1765393806105,101.3206,138.18,138.1,60.96]
[1765393806307,108.29961172,138.22,138.12,3.11]
[1765393806507,104.3279,138.21,138.12,3.11]
[1765393806706,0.04849386,138.18,138.15,0.05583208]
[1765393807104,6.5096,138.26,138.17,9.6235]
[1765393807302,101.2614,138.26,138.17,9.6235]
[1765393807498,63.93,138.27,138.18,101.3141]
[1765393807699,3.03,138.31,138.18,3.11]
[1765393807897,104.2554,138.31,138.2,104.4112]
[1765393808207,3.03,138.25,138.24,0.04722159]
[1765393808609,0.05583912,138.27,138.24,0.04722159]
[1765393808997,3.03,138.36,138.26,3.11]
[1765393809202,108.18071172,138.38,138.28,3.11]
[1765393809400,6.504,138.38,138.29,6.5078]
[1765393809595,7.00771172,138.4,138.28,3.11]
[1765393809808,7.00771172,138.4,138.3,3.11]
[1765393809809,107.6654,138.4,138.3,3.11]
[1765393810106,0.05090706,138.35,138.32,0.04938003]
[1765393810706,0.05090706,138.35,138.32,3.27938003]
[1765393810906,0.05090706,138.35,138.32,0.04938003]
[1765393811102,3.22090706,138.35,138.32,0.04938003]
[1765393811308,0.05090706,138.35,138.32,3.27938003]
[1765393811504,3.42854486,138.37,138.34,3.23]
[1765393811708,3.42854486,138.37,138.34,104.4317]
[1765393812015,3.401e-05,138.37,138.36,3.23]
[1765393812511,3.17,138.47,138.39,6.5034]
[1765393812811,0.05304126,138.44,138.42,0.05085843]
[1765393813200,104.3067,138.43,138.32,104.4437]
[1765393813402,104.3067,138.43,138.33,3.23]
[1765393813606,101.1446,138.42,138.34,3.23]
[1765393813806,101.1657,138.39,138.29,3.23]
[1765393814105,0.04612054,138.35,138.33,0.05455275]
[1765393814302,0.04916974,138.35,138.33,0.05455275]
[1765393814807,3.17,138.34,138.23,3.23]
[1765393815004,3.17,138.34,138.25,104.4962]
[1765393815202,101.2103,138.33,138.25,3.23]
[1765393815405,101.232,138.3,138.24,60.94]
[1765393815603,104.3873,138.32,138.24,60.94]
[1765393815803,6.5073,138.31,138.24,60.94]
[1765393816013,0.05446981,138.29,138.27,0.05046306]
[1765393816507,6.5086,138.28,138.27,0.05046306]
[1765393816701,0.05446981,138.29,138.27,0.05046306]
[1765393817215,101.2534,138.27,138.18,60.92]
[1765393817408,3.17,138.29,138.19,101.3117]
[1765393817710,6.51,138.26,138.18,64.15]
[1765393817903,101.2464,138.28,138.18,64.15]
[1765393817904,101.2484,138.28,138.18,64.15]
[1765393818101,6.5099,138.26,138.22,0.04601951]
[1765393818303,0.05439195,138.24,138.22,0.04601951]
[1765393818508,0.05439195,138.24,138.22,3.27601951]
[1765393818814,0.05439195,138.24,138.22,9.78711951]
[1765393819008,101.2117,138.33,138.22,9.78711951]
[1765393819009,101.2117,138.33,138.23,3.23]
[1765393819315,3.17,138.32,138.2,3.23]
[1765393819620,104.4381,138.25,138.15,3.23]
[1765393819910,0.05231668,138.21,138.19,0.05555921]
[1765393820114,104.4095,138.29,138.19,3.28555921]
[1765393820321,104.4095,138.29,138.19,3.23]
[1765393820629,104.4309,138.26,138.15,101.3376]
[1765393820817,101.2154,138.33,138.22,104.5192]
[1765393821114,101.2154,138.33,138.26,0.05038023]
[1765393821115,0.05559214,138.29,138.26,0.05038023]
[1765393821303,0.05559214,138.29,138.26,3.28038023]
[1765393821718,0.05559214,138.29,138.27,3.23]
[1765393821911,0.05559214,138.29,138.26,0.05038023]
[1765393822212,3.22559214,138.29,138.26,0.05038023]
[1765393822717,0.05559214,138.29,138.26,0.05038023]
[1765393823299,0.05559214,138.29,138.26,3.28038023]
[1765393823511,0.05559214,138.29,138.27,3.23]
[1765393824810,101.1877,138.36,138.27,4.67]
[1765393825018,104.3675,138.35,138.25,60.94]
[1765393825200,3.17,138.35,138.25,60.94]
[1765393825519,9.6735,138.39,138.3,6.5074]
[1765393825707,3.17,138.39,138.29,104.4672]
[1765393825912,0.05057756,138.35,138.33,0.04731416]
[1765393826407,3.22057756,138.35,138.33,0.04731416]
[1765393827015,6.5063,138.33,138.27,60.92]
[1765393827204,101.1683,138.39,138.28,104.4713]
[1765393827515,6.5037,138.39,138.3,3.23]
[1765393827718,104.3433,138.38,138.27,162.168]
[1765393828010,0.05425164,138.34,138.31,0.05503785]
[1765393828218,0.05425164,138.34,138.31,9.79203785]
[1765393828412,0.05425164,138.34,138.32,3.23]
[1765393828621,3.17,138.42,138.32,3.23]
[1765393828914,60.86,138.45,138.34,3.23]
[1765393829116,60.86,138.45,138.36,3.23]
[1765393829117,101.1218,138.45,138.36,3.23]
[1765393829307,104.3105,138.43,138.32,104.4437]
[1765393829509,0.04780115,138.39,138.36,0.05471743]
[1765393829816,9.72150115,138.39,138.36,0.05471743]
[1765393830410,0.04780115,138.39,138.36,0.05471743]
[1765393830819,0.04780115,138.39,138.36,3.28471743]
[1765393831416,3.17,138.47,138.37,3.23]
[1765393831610,104.2993,138.44,138.36,60.92]
[1765393831810,3.17,138.44,138.36,60.92]
[1765393832019,6.5003,138.46,138.39,6.5031]
[1765393832216,101.1158,138.46,138.39,3.23]
[1765393832416,101.1158,138.46,138.41,0.0465024]
[1765393832417,3.17,138.43,138.41,0.0465024]
[1765393832612,3.17,138.4,138.32,6.5065]
[1765393832814,116.41399121,138.45,138.34,3.23]
[1765393833116,15.29189121,138.45,138.35,104.4245]
[1765393833417,104.3014,138.44,138.36,3.23]
[1765393833719,0.0555459,138.41,138.39,0.04996596]
[1765393833919,104.3777459,138.41,138.33,3.23]
[1765393834108,6.5036,138.39,138.33,3.23]
[1765393834513,3.11,138.45,138.37,3.28]
[1765393834716,12.12189121,138.46,138.37,104.4568]
[1765393834921,0.04694687,138.43,138.4,0.05381688]
[1765393835627,3.11,138.41,138.4,0.05381688]
[1765393835806,3.11,138.41,138.33,6.506]
[1765393836011,3.11,138.41,138.32,6.5065]
[1765393836012,6.5035,138.39,138.32,6.5065]
[1765393836208,101.1491,138.42,138.33,3.28]
[1765393836523,101.1404,138.43,138.33,3.28]
[1765393836719,6.5017,138.43,138.36,6.5046]
[1765393837025,0.05441073,138.41,138.38,0.05072932]
[1765393838026,0.05441073,138.41,138.38,3.33072932]
[1765393838211,3.11,138.47,138.4,6.5026]
[1765393838418,6.5008,138.45,138.38,3.28]
[1765393839126,6.5008,138.45,138.4,0.04861126]
[1765393839127,0.05299207,138.43,138.4,0.04861126]
[1765393839327,0.05299207,138.43,138.4,3.32861126]
[1765393839620,0.05299207,138.43,138.4,0.04861126]
[1765393839828,3.16299207,138.43,138.4,0.04861126]
[1765393840025,104.30399207,138.43,138.4,0.04861126]
[1765393840327,3.11,138.41,138.4,0.04861126]
[1765393840522,0.05299207,138.43,138.4,0.04861126]
[1765393841115,3.11,138.47,138.4,3.32861126]
[1765393841421,3.11,138.51,138.42,104.4214]
[1765393841622,3.11,138.51,138.42,3.28]
[1765393842027,6.4985,138.5,138.44,6.5008]
[1765393842330,3.15803216,138.48,138.46,0.05074253]
[1765393842532,15.27992337,138.48,138.4,60.9]
[1765393842821,104.22,138.47,138.4,60.9]
[1765393843122,12.12189121,138.42,138.34,3.28]
[1765393843328,101.129,138.44,138.34,3.28]
[1765393843515,9.66725581,138.4,138.38,0.05145314]
[1765393843722,9.66725581,138.4,138.3,64.18]
[1765393843723,15.23189121,138.39,138.3,64.18]
[1765393844123,15.23189121,138.39,138.32,101.216]
[1765393844317,12.12189121,138.42,138.33,104.4887]
[1765393844623,0.05426249,138.39,138.36,0.05053985]
[1765393845218,0.05426249,138.39,138.36,3.33053985]
[1765393845524,72.96189121,138.48,138.4,3.28]
[1765393845525,3.11,138.48,138.4,3.28]
[1765393845716,15.23189121,138.52,138.41,101.15]
[1765393845916,6.4986,138.5,138.44,6.501]
[1765393846115,6.4986,138.5,138.41,163.15]
[1765393846116,116.30549121,138.52,138.41,163.15]
[1765393846323,0.05007309,138.48,138.45,0.05069683]
[1765393846725,0.05007309,138.48,138.45,3.33069683]
[1765393846924,0.05007309,138.48,138.46,9.7798]
[1765393847514,0.05007309,138.48,138.47,3.28]
[1765393847922,116.27469121,138.56,138.47,3.28]
[1765393847923,15.23189121,138.56,138.47,105.824]
[1765393848122,6.4953,138.57,138.49,3.28]
[1765393848317,12.12189121,138.59,138.52,6.4971]
[1765393848516,6.49211237,138.6,138.52,101.0662]
[1765393848722,6.49211237,138.6,138.51,104.3563]
[1765393848916,3.16556189,138.57,138.54,0.0512485]
[1765393849122,104.20476189,138.57,138.46,3.28]
[1765393849325,101.0705,138.52,138.43,3.28]
[1765393849531,101.0805,138.51,138.43,3.28]
[1765393849917,113.18619121,138.53,138.43,3.28]
[1765393850120,0.05059893,138.49,138.47,0.05025255]
[1765393850331,0.05059893,138.49,138.47,3.33025255]
[1765393850928,0.05059893,138.49,138.47,9.82965255]
[1765393851231,6.4952,138.57,138.49,3.28]
[1765393851528,101.0413,138.56,138.48,60.88]
[1765393851735,101.0566,138.54,138.48,60.88]
[1765393852033,101.0418,138.56,138.48,60.88]
[1765393852329,0.05014188,138.52,138.5,0.05163506]
[1765393852734,0.05014188,138.52,138.5,3.33163506]
[1765393852938,0.05014188,138.52,138.5,0.05163506]
[1765393854835,0.05014188,138.52,138.5,3.33163506]
[1765393855337,0.05014188,138.52,138.5,0.05163506]
[1765393855732,9.65764188,138.52,138.5,0.05163506]
[1765393856037,3.11,138.51,138.5,0.05163506]
[1765393856335,0.05014188,138.52,138.5,0.05163506]
[1765393857037,9.65774188,138.52,138.5,0.05163506]
[1765393857640,104.1923,138.51,138.43,60.86]
[1765393857834,3.11,138.56,138.46,104.391]
[1765393858236,6.4953,138.57,138.49,3.28]
[1765393858640,0.05037911,138.54,138.52,0.04593107]
[1765393858936,0.05031626,138.54,138.53,3.28]
[1765393859134,0.05031626,138.54,138.52,3.32593107]
[1765393859535,0.05031626,138.54,138.52,9.82323107]
[1765393859735,0.05031626,138.54,138.53,3.28]
[1765393859937,3.38211237,138.6,138.53,104.34]
[1765393860137,3.38211237,138.6,138.56,3.28]
[1765393860551,3.38211237,138.6,138.51,3.28]
[1765393860738,6.4952,138.57,138.51,9.7776]
[1765393861042,0.0480477,138.55,138.53,3.32798745]
[1765393861339,3.38211237,138.6,138.57,9.7748]
[1765393861546,3.38211237,138.6,138.58,3.28]
[1765393861935,3.11,138.68,138.6,101.0112]
[1765393862132,0.04768328,138.65,138.63,0.04833476]
[1765393862341,3.11,138.72,138.63,3.3325629]
[1765393862648,3.11,138.72,138.64,3.28]
[1765393863038,104.0573,138.69,138.63,60.84]
[1765393863244,104.0949,138.64,138.55,3.28]
[1765393863442,0.05409453,138.61,138.58,0.05531879]
[1765393863643,9.604,138.6,138.58,0.05531879]
[1765393864041,101.0307,138.58,138.51,60.84]
[1765393864250,101.0452,138.56,138.47,3.26]
[1765393864633,101.0596,138.54,138.47,3.26]
[1765393865035,0.05054284,138.52,138.49,0.04781934]
[1765393865540,3.19054284,138.52,138.49,0.04781934]
[1765393865940,104.26484284,138.52,138.49,0.04781934]
[1765393866139,3.14,138.51,138.49,0.04781934]
[1765393866343,3.14,138.5,138.49,0.04781934]
[1765393866544,9.6381,138.51,138.49,0.04781934]
[1765393866741,3.14,138.51,138.49,0.04781934]
[1765393866946,3.14,138.51,138.41,104.4105]
[1765393867252,101.0509,138.55,138.44,104.3865]
[1765393867548,3.14,138.56,138.47,104.3662]
[1765393867752,104.1911,138.55,138.44,101.1265]
[1765393867942,110.7174,138.51,138.42,3.26]
[1765393868250,3.14,138.48,138.45,0.04594719]
[1765393868549,3.14,138.47,138.45,0.04594719]
[1765393868948,104.2493,138.47,138.45,0.04594719]
[1765393869150,3.14,138.46,138.45,0.04594719]
[1765393869547,9.6501,138.47,138.45,0.04594719]
[1765393869744,0.04899254,138.48,138.45,0.04594719]
[1765393870147,0.04899254,138.48,138.45,3.10594719]
[1765393871152,0.04899254,138.48,138.45,0.04594719]
[1765393871448,3.19899254,138.48,138.45,0.04594719]
[1765393871641,104.29859254,138.48,138.45,0.04594719]
[1765393871845,104.29859254,138.48,138.38,60.84]
[1765393871846,6.5012,138.44,138.38,60.84]
[1765393872039,6.5012,138.44,138.33,104.2675]
[1765393872040,101.1289,138.44,138.33,104.2675]
[1765393872253,101.1384,138.43,138.34,6.5054]
[1765393872554,15.27189121,138.44,138.34,104.2594]
[1765393872741,0.05478194,138.4,138.38,0.05147796]
[1765393874554,3.20478194,138.4,138.38,0.05147796]
[1765393875048,101.1734,138.38,138.3,3.06]
[1765393875250,104.3385,138.36,138.25,9.56579065]
[1765393875559,15.27189121,138.34,138.25,9.5699]
[1765393875850,15.27189121,138.34,138.23,107.78499065]
[1765393875851,101.2168,138.32,138.23,6.50579065]
[1765393876056,0.04753153,138.29,138.26,0.05429845]
[1765393876551,3.19753153,138.29,138.26,0.05429845]
[1765393876943,3.15,138.28,138.26,0.05429845]
[1765393877856,3.15,138.26,138.15,107.84299065]
[1765393878043,9.6599,138.26,138.17,6.5134]
[1765393878243,3.15,138.26,138.17,101.3243]
[1765393878440,3.15,138.25,138.16,3.06]
[1765393878749,0.04747624,138.22,138.19,104.41713872]
[1765393878946,0.04747624,138.22,138.19,3.10623872]
[1765393879146,0.04747624,138.22,138.2,3.06]
[1765393879758,0.04747624,138.22,138.19,0.04623872]
[1765393880559,0.04747624,138.22,138.19,3.10623872]
[1765393880859,3.15,138.28,138.19,65.10623872]
[1765393881047,116.49139121,138.32,138.2,104.3638]
[1765393881243,107.7394,138.3,138.2,110.8761]
[1765393881447,9.6578,138.3,138.2,110.8761]
[1765393881649,0.04816544,138.26,138.24,0.05251588]
[1765393881848,6.5066,138.33,138.25,9.57]
[1765393882050,104.3678,138.32,138.22,3.06]
[1765393882355,101.2319,138.3,138.22,3.06]
[1765393882749,6.508,138.3,138.22,3.06]
[1765393882957,0.05363936,138.27,138.25,0.05103842]
[1765393883452,63.99,138.34,138.25,3.11103842]
[1765393883753,9.6566,138.33,138.25,3.06]
[1765393883958,9.6566,138.33,138.24,104.3323]
[1765393884154,9.6566,138.33,138.24,3.06]
[1765393884354,104.3675,138.32,138.23,6.5109]
[1765393884559,0.04834805,138.29,138.26,0.05461526]
[1765393885264,0.04834805,138.29,138.26,3.11461526]
[1765393885747,3.15,138.36,138.28,3.06]
[1765393885948,6.5045,138.37,138.28,104.3006]
[1765393886152,177.29059121,138.4,138.29,101.235]
[1765393886357,6.5042,138.38,138.3,6.5076]
[1765393886753,0.04949939,138.35,138.33,0.04901493]
[1765393886947,3.19949939,138.35,138.33,0.04901493]
[1765393887355,9.70509939,138.35,138.33,0.04901493]
[1765393887751,104.39509939,138.35,138.33,0.04901493]
[1765393887951,104.353,138.34,138.25,60.92]
[1765393888254,3.15,138.28,138.18,101.3175]
[1765393888560,9.6589,138.28,138.2,6.5121]
[1765393888759,9.6589,138.28,138.19,101.3086]
[1765393888958,0.05474582,138.25,138.22,3.10635495]
[1765393889259,3.15,138.33,138.24,104.3346]
[1765393889460,3.15,138.33,138.25,6.5098]
[1765393889955,174.18699121,138.34,138.19,65.06]
[1765393889956,3.15,138.29,138.19,65.06]
[1765393890157,3.15,138.25,138.15,104.4003]
[1765393890362,0.05347829,138.21,138.19,0.05091522]
[1765393890659,21.87,138.37,138.19,3.11091522]
[1765393890849,3.15,138.43,138.31,101.2211]
[1765393891052,110.8002,138.42,138.31,104.2811]
[1765393891260,104.2944,138.42,138.31,104.2811]
[1765393891559,0.05232521,138.38,138.35,0.04860098]
[1765393892154,3.20232521,138.38,138.35,0.04860098]
[1765393892354,3.15,138.37,138.27,101.2498]
[1765393892560,10.11432777,138.37,138.27,104.3098]
[1765393892763,3.15,138.36,138.27,104.3093]
[1765393892966,111.27362777,138.4,138.29,101.2352]
[1765393893154,6.96432777,138.34,138.24,104.3321]
[1765393893360,0.04735953,138.3,138.28,0.04780153]
[1765393894362,0.04735953,138.3,138.28,3.13780153]
[1765393894669,0.04735953,138.3,138.28,0.04780153]
[1765393895662,0.04735953,138.3,138.29,3.09]
[1765393895863,10.11432777,138.37,138.29,3.09]
[1765393896065,6.96432777,138.4,138.3,101.2283]
[1765393896256,10.17432777,138.4,138.3,163.2283]
[1765393896760,117.83682777,138.4,138.31,6.5068]
[1765393896955,0.05547443,138.37,138.34,0.04690662]
[1765393898159,3.26547443,138.37,138.34,0.04690662]
[1765393898364,0.05547443,138.37,138.34,3.13690662]
[1765393898763,0.05547443,138.37,138.34,9.64240662]
[1765393899065,0.05547443,138.37,138.34,0.04690662]
[1765393899464,3.26547443,138.37,138.34,0.04690662]
[1765393899662,0.05547443,138.37,138.34,0.04690662]
[1765393900365,0.05547443,138.37,138.34,3.13690662]
[1765393900667,101.1243,138.45,138.34,3.13690662]
[1765393900668,6.5007,138.45,138.37,6.5043]
[1765393900863,3.21,138.46,138.35,104.2835]
[1765393901165,9.7084,138.5,138.42,6.5017]
[1765393901564,6.96432777,138.52,138.42,104.2317]
[1765393901768,0.04961755,138.48,138.46,0.04709761]
[1765393902660,104.32,138.47,138.37,3.09]
[1765393902860,111.29812777,138.45,138.36,67.4247]
[1765393903063,101.1293,138.44,138.36,60.92]
[1765393903259,104.3645,138.41,138.3,3.09]
[1765393903460,108.13442777,138.39,138.3,9.5975]
[1765393903767,0.0519829,138.36,138.33,0.05435815]
[1765393904276,3.21,138.35,138.33,0.05435815]
[1765393904566,9.7156,138.35,138.33,0.05435815]
[1765393905068,9.7156,138.35,138.28,60.92]
[1765393905368,6.5062,138.34,138.28,60.92]
[1765393905669,3.21,138.33,138.22,165.2967]
[1765393906073,0.05484451,138.29,138.26,3.13757992]
[1765393906368,0.05484451,138.29,138.26,0.04757992]
[1765393906865,9.77314451,138.29,138.26,0.04757992]
[1765393907075,0.05484451,138.29,138.26,0.04757992]
[1765393907368,9.77324451,138.29,138.26,0.04757992]
[1765393908155,9.7188,138.28,138.26,0.04757992]
[1765393908357,0.05484451,138.29,138.26,0.04757992]
[1765393909562,3.26484451,138.29,138.26,0.04757992]
[1765393910058,3.21,138.28,138.26,0.04757992]
[1765393910258,0.05484451,138.29,138.26,0.04757992]
[1765393910570,3.26484451,138.29,138.26,0.04757992]
[1765393911370,0.05484451,138.29,138.26,0.04757992]
[1765393911559,3.26484451,138.29,138.26,0.04757992]
[1765393911765,3.21,138.28,138.19,6.50579065]
[1765393911963,6.5093,138.27,138.19,6.50579065]
[1765393912163,3.21,138.28,138.19,9.59579065]
[1765393912364,3.21,138.28,138.2,9.59579065]
[1765393912871,0.04617687,138.25,138.23,0.05409753]
[1765393913168,3.25617687,138.25,138.23,0.05409753]
[1765393913472,0.04617687,138.25,138.23,0.05409753]
[1765393913869,3.25617687,138.25,138.23,0.05409753]
[1765393914662,0.04617687,138.25,138.23,0.05409753]
[1765393914864,0.04617687,138.25,138.23,3.14409753]
[1765393915067,0.04617687,138.25,138.23,0.05409753]
[1765393915270,3.25617687,138.25,138.23,0.05409753]
[1765393915667,3.25617687,138.25,138.19,6.50579065]
[1765393915972,104.4882,138.24,138.16,6.50579065]
[1765393916171,104.5001,138.22,138.16,6.50579065]
[1765393916467,6.5127,138.2,138.16,6.50579065]
[1765393916663,9.7227,138.2,138.15,67.44579065]
[1765393916863,101.2853,138.23,138.15,67.44579065]
[1765393916864,0.05445049,138.19,138.17,0.05522703]
[1765393917066,3.26445049,138.19,138.17,0.05522703]
[1765393917869,3.26445049,138.19,138.12,6.56386486]
[1765393917870,3.21,138.18,138.12,6.56386486]
[1765393918074,104.5333,138.18,138.11,6.56386486]
[1765393918266,6.514,138.17,138.1,6.56386486]
[1765393918469,162.2019,138.21,138.11,9.65386486]
[1765393918470,60.9,138.21,138.11,9.65386486]
[1765393918770,0.04947736,138.17,138.15,0.04552785]
[1765393920274,3.25947736,138.17,138.15,0.04552785]
[1765393920467,0.04947736,138.17,138.1,3.09]
[1765393920670,3.25947736,138.17,138.09,70.59386486]
[1765393920877,0.04947736,138.17,138.13,9.65386486]
[1765393921074,0.04947736,138.17,138.15,3.09]
[1765393921270,101.2472,138.28,138.18,3.09]
[1765393921473,104.4807,138.25,138.17,6.54860529]
[1765393921774,3.21,138.23,138.16,6.54860529]
[1765393921972,3.21,138.23,138.15,6.54860529]
[1765393922179,0.0535667,138.2,138.18,0.04729779]
[1765393922373,0.0535667,138.2,138.18,9.65039779]
[1765393922579,0.0535667,138.2,138.18,0.04729779]
[1765393922772,0.0535667,138.2,138.18,3.13729779]
[1765393922979,0.0535667,138.2,138.18,0.04729779]
[1765393923379,0.0535667,138.2,138.18,3.13729779]
[1765393924083,0.0535667,138.2,138.18,0.04729779]
[1765393924285,0.0535667,138.2,138.18,3.16729779]
[1765393924583,3.1535667,138.2,138.18,0.04729779]
[1765393924880,0.0535667,138.2,138.18,0.04729779]
[1765393926082,3.1535667,138.2,138.14,6.54860529]
[1765393926381,3.1535667,138.2,138.13,6.5154]
[1765393926581,0.0535667,138.2,138.13,3.12]
[1765393926774,0.0535667,138.2,138.13,9.66860529]
[1765393926970,3.1535667,138.2,138.15,0.04956042]
[1765393927286,0.0535667,138.2,138.15,3.16956042]
[1765393927681,0.0535667,138.2,138.15,6.56416042]
[1765393928186,0.0535667,138.2,138.16,3.31]
[1765393928381,0.0535667,138.2,138.18,3.31]
[1765393928588,6.5089,138.28,138.2,3.31]
[1765393928776,175.1434,138.33,138.21,104.6063]
[1765393928777,101.2171,138.32,138.21,104.6063]
[1765393928972,3.23,138.31,138.21,104.6063]
[1765393929277,3.23,138.28,138.18,111.17440529]
[1765393929481,3.23,138.28,138.22,0.0523747]
[1765393929482,0.05443571,138.24,138.22,0.0523747]
[1765393929883,3.28443571,138.24,138.22,0.0523747]
[1765393930077,7.03531325,138.24,138.22,0.0523747]
[1765393930283,6.56513571,138.24,138.22,0.0523747]
[1765393930484,9.79513571,138.24,138.22,0.0523747]
[1765393930777,3.23,138.23,138.22,0.0523747]
[1765393931182,3.23,138.23,138.15,13.06310529]
[1765393931183,3.23,138.22,138.15,6.5145]
[1765393931485,108.25207754,138.25,138.15,3.31]
[1765393931686,108.25207754,138.25,138.15,104.6464]
[1765393931687,13.49107754,138.25,138.15,104.6464]
[1765393931878,64.15,138.26,138.17,104.631]
[1765393932077,104.4643,138.3,138.2,3.31]
[1765393932279,6.5084,138.29,138.2,104.6098]
[1765393932488,0.04786935,138.26,138.24,3.36489086]
[1765393932788,0.05020609,138.26,138.24,3.36489086]
[1765393932986,162.1526,138.33,138.25,6.5097]
[1765393932987,67.4464,138.33,138.25,6.5097]
[1765393933294,108.14837754,138.39,138.27,104.5601]
[1765393933585,3.23,138.38,138.28,101.245]
[1765393933787,104.4331,138.34,138.26,60.98]
[1765393934084,0.05524445,138.31,138.29,0.04640193]
[1765393934798,9.79274445,138.31,138.29,0.04640193]
[1765393935184,0.05524445,138.31,138.29,0.04640193]
[1765393935589,0.05524445,138.31,138.29,3.35640193]
[1765393935889,111.37037754,138.4,138.29,106.03200193]
[1765393936103,111.37037754,138.4,138.29,104.5456]
[1765393936390,3.23,138.36,138.28,6.5082]
[1765393936793,0.04967904,138.33,138.31,0.05244905]
[1765393937687,3.27967904,138.33,138.31,0.05244905]
[1765393937890,3.27967904,138.33,138.23,9.85860529]